{"text_format":"3","workbook":"xlsx","n_sheets":2,"sheets":["Rastreador de Perda de Peso","cálculos"],"not_rendered":{"charts":1,"defined_names":7},"read":"whole","date_system":"1900"}

{"sheet":"Rastreador de Perda de Peso","index":0,"n_rows":129,"n_cols":11,"rows_kept":129,"merged":[[0,5,0,9],[1,5,3,9]]}
[null,"PESO DESEJADO","VISTA DE GRÁFICO",null,null," KIMBERLY'S PERDA DE PESO"]
[{"$nulls":5},"RASTREADOR"]
[null,{"v":172,"d":"172.0"},"SEMANAL",{"$nulls":7}," "]
[]
[]
[{"$nulls":10}," "]
{"$rows_empty":18}
[null,"DATA","PESO"]
[null,"2012-11-30",{"v":176,"d":"176.0"}]
[null,"2012-12-07",{"v":176,"d":"176.0"}]
[null,"2012-12-14",177.6]
[null,"2012-12-21",176.5]
[null,"2012-12-28",176.1]
[null,"2013-01-04",{"v":174,"d":"174.0"}]
[null,"2013-01-11",{"v":173,"d":"173.0"}]
[null,"2013-01-18",{"v":172,"d":"172.0"}]
[null,"2013-01-25",{"v":172,"d":"172.0"}]
[null,"2013-02-01",{"v":173,"d":"173.0"}]
[null,"2013-02-08",{"v":174,"d":"174.0"}]
[null,"2013-02-15",{"v":175,"d":"175.0"}]
[null,"2013-02-22"]
[null,"2013-03-01"]
[null,"2013-03-08"]
[null,"2013-03-15"]
[null,"2013-03-22"]
[null,"2013-03-29"]
[null,"2013-04-05"]
[null,"2013-04-12"]
[null,"2013-04-19"]
[null,"2013-04-26"]
[null,"2013-05-03"]
[null,"2013-05-10"]
[null,"2013-05-17"]
[null,"2013-05-24"]
[null,"2013-05-31"]
[null,"2013-06-07"]
[null,"2013-06-14"]
[null,"2013-06-21"]
[null,"2013-06-28"]
[null,"2013-07-05"]
[null,"2013-07-12"]
[null,"2013-07-19"]
[null,"2013-07-26"]
[null,"2013-08-02"]
[null,"2013-08-09"]
[null,"2013-08-16"]
[null,"2013-08-23"]
[null,"2013-08-30"]
[null,"2013-09-06"]
[null,"2013-09-13"]
[null,"2013-09-20"]
[null,"2013-09-27"]
[null,"2013-10-04"]
[null,"2013-10-11"]
[null,"2013-10-18"]
[null,"2013-10-25"]
[null,"2013-11-01"]
[null,"2013-11-08"]
[null,"2013-11-15"]
[null,"2013-11-22"]
[null,"2013-11-29"]
[null,"2013-12-06"]
[null,"2013-12-13"]
[null,"2013-12-20"]
[null,"2013-12-27"]
[null,"2014-01-03"]
[null,"2014-01-10"]
[null,"2014-01-17"]
[null,"2014-01-24"]
[null,"2014-01-31"]
[null,"2014-02-07"]
[null,"2014-02-14"]
[null,"2014-02-21"]
[null,"2014-02-28"]
[null,"2014-03-07"]
[null,"2014-03-14"]
[null,"2014-03-21"]
[null,"2014-03-28"]
[null,"2014-04-04"]
[null,"2014-04-11"]
[null,"2014-04-18"]
[null,"2014-04-25"]
[null,"2014-05-02"]
[null,"2014-05-09"]
[null,"2014-05-16"]
[null,"2014-05-23"]
[null,"2014-05-30"]
[null,"2014-06-06"]
[null,"2014-06-13"]
[null,"2014-06-20"]
[null,"2014-06-27"]
[null,"2014-07-04"]
[null,"2014-07-11"]
[null,"2014-07-18"]
[null,"2014-07-25"]
[null,"2014-08-01"]
[null,"2014-08-08"]
[null,"2014-08-15"]
[null,"2014-08-22"]
[null,"2014-08-29"]
[null,"2014-09-05"]
[null,"2014-09-12"]
[null,"2014-09-19"]
[null,"2014-09-26"]
[null,"2014-10-03"]
[null,"2014-10-10"]
[null,"2014-10-17"]
[null,"2014-10-24"]
[null,"2014-10-31"]
[null,"2014-11-07"]
[null,"2014-11-14"]
[null,"2014-11-21"]

{"sheet":"cálculos","index":1,"n_rows":108,"n_cols":17,"rows_kept":108,"hidden":true}
["*** Esta folha deverá permanecer ocultada ***"]
[]
[{"$f":"COUNTIF(A5:A108,FALSE)","v":13},"Períodos","Vamores",{"$nulls":3},{"$f":"COUNTIF(H5:H28,\">\"&0)","v":4},"Períodos",null,"Vamores"]
[null,"Semana",null,null,true,null,null,"Mês","FDM"]
[{"$f":"IF(('Rastreador de Perda de Peso'!C26=0)*('Rastreador de Perda de Peso'!C25=0),TRUE)","v":false},{"$f":"IF(A5,0,IF('Rastreador de Perda de Peso'!B26=0,'Rastreador de Perda de Peso'!B25+5,'Rastreador de Perda de Peso'!B26))","v":"2012-11-30"},{"$f":"'Rastreador de Perda de Peso'!C26","v":176},{"$f":"MIN(PeríodosDoGráfico)","v":"2012-11-30"},{"$f":"IF($E$4,PesoDoObjetivo,NA())","v":172},null,null,{"$f":"DATE(YEAR(B5),MONTH(B5),1)","v":"2012-11-01"},{"$f":"EOMONTH(H5,0)","v":"2012-11-30"},{"$f":"IFERROR(AVERAGEIFS(TabelaDePeso[PESO],TabelaDePeso[DATA],\">=\"&H5,TabelaDePeso[DATA],\"<=\"&I5),NA())","v":176}]
[{"$f":"IF(('Rastreador de Perda de Peso'!C27=0)*('Rastreador de Perda de Peso'!C26=0),TRUE)","v":false},{"$f":"IF(A6,0,IF('Rastreador de Perda de Peso'!B27=0,'Rastreador de Perda de Peso'!B26+5,'Rastreador de Perda de Peso'!B27))","v":"2012-12-07"},{"$f":"'Rastreador de Perda de Peso'!C27","v":176},{"$f":"MAX(PeríodosDoGráfico)","v":"2013-02-22"},172,null,null,{"$f":"IF(I5+1>MAX($B:$B),NA(),I5+1)","v":"2012-12-01"},"2012-12-31",{"$f":"IFERROR(AVERAGEIFS(TabelaDePeso[PESO],TabelaDePeso[DATA],\">=\"&H6,TabelaDePeso[DATA],\"<=\"&I6),NA())","v":176.55}]
[{"$f":"IF(('Rastreador de Perda de Peso'!C28=0)*('Rastreador de Perda de Peso'!C27=0),TRUE)","v":false},{"$f":"IF(A7,0,IF('Rastreador de Perda de Peso'!B28=0,'Rastreador de Perda de Peso'!B27+5,'Rastreador de Perda de Peso'!B28))","v":"2012-12-14"},{"$f":"'Rastreador de Perda de Peso'!C28","v":177.6},{"$nulls":4},{"$f":"IF(I6+1>MAX($B:$B),NA(),I6+1)","v":"2013-01-01"},"2013-01-31",{"$f":"IFERROR(AVERAGEIFS(TabelaDePeso[PESO],TabelaDePeso[DATA],\">=\"&H7,TabelaDePeso[DATA],\"<=\"&I7),NA())","v":172.75}]
[{"$f":"IF(('Rastreador de Perda de Peso'!C29=0)*('Rastreador de Perda de Peso'!C28=0),TRUE)","v":false},{"$f":"IF(A8,0,IF('Rastreador de Perda de Peso'!B29=0,'Rastreador de Perda de Peso'!B28+5,'Rastreador de Perda de Peso'!B29))","v":"2012-12-21"},{"$f":"'Rastreador de Perda de Peso'!C29","v":176.5},{"$nulls":4},"2013-02-01","2013-02-28",{"$f":"IFERROR(AVERAGEIFS(TabelaDePeso[PESO],TabelaDePeso[DATA],\">=\"&H8,TabelaDePeso[DATA],\"<=\"&I8),NA())","v":174}]
[{"$f":"IF(('Rastreador de Perda de Peso'!C30=0)*('Rastreador de Perda de Peso'!C29=0),TRUE)","v":false},{"$f":"IF(A9,0,IF('Rastreador de Perda de Peso'!B30=0,'Rastreador de Perda de Peso'!B29+5,'Rastreador de Perda de Peso'!B30))","v":"2012-12-28"},{"$f":"'Rastreador de Perda de Peso'!C30","v":176.1},{"$nulls":4},{"$error":"#N/A"},{"$error":"#N/A"},{"$f":"IFERROR(AVERAGEIFS(TabelaDePeso[PESO],TabelaDePeso[DATA],\">=\"&H9,TabelaDePeso[DATA],\"<=\"&I9),NA())","v":{"$error":"#N/A"}}]
[{"$f":"IF(('Rastreador de Perda de Peso'!C31=0)*('Rastreador de Perda de Peso'!C30=0),TRUE)","v":false},{"$f":"IF(A10,0,IF('Rastreador de Perda de Peso'!B31=0,'Rastreador de Perda de Peso'!B30+5,'Rastreador de Perda de Peso'!B31))","v":"2013-01-04"},{"$f":"'Rastreador de Perda de Peso'!C31","v":174},{"$nulls":4},{"$error":"#N/A"},{"$error":"#N/A"},{"$f":"IFERROR(AVERAGEIFS(TabelaDePeso[PESO],TabelaDePeso[DATA],\">=\"&H10,TabelaDePeso[DATA],\"<=\"&I10),NA())","v":{"$error":"#N/A"}}]
[{"$f":"IF(('Rastreador de Perda de Peso'!C32=0)*('Rastreador de Perda de Peso'!C31=0),TRUE)","v":false},{"$f":"IF(A11,0,IF('Rastreador de Perda de Peso'!B32=0,'Rastreador de Perda de Peso'!B31+5,'Rastreador de Perda de Peso'!B32))","v":"2013-01-11"},{"$f":"'Rastreador de Perda de Peso'!C32","v":173},{"$nulls":4},{"$error":"#N/A"},{"$error":"#N/A"},{"$f":"IFERROR(AVERAGEIFS(TabelaDePeso[PESO],TabelaDePeso[DATA],\">=\"&H11,TabelaDePeso[DATA],\"<=\"&I11),NA())","v":{"$error":"#N/A"}},{"$nulls":6},{"$f":"MAX($B:$B)","v":"2013-02-22"}]
[{"$f":"IF(('Rastreador de Perda de Peso'!C33=0)*('Rastreador de Perda de Peso'!C32=0),TRUE)","v":false},{"$f":"IF(A12,0,IF('Rastreador de Perda de Peso'!B33=0,'Rastreador de Perda de Peso'!B32+5,'Rastreador de Perda de Peso'!B33))","v":"2013-01-18"},{"$f":"'Rastreador de Perda de Peso'!C33","v":172},{"$nulls":4},{"$error":"#N/A"},{"$error":"#N/A"},{"$f":"IFERROR(AVERAGEIFS(TabelaDePeso[PESO],TabelaDePeso[DATA],\">=\"&H12,TabelaDePeso[DATA],\"<=\"&I12),NA())","v":{"$error":"#N/A"}}]
[{"$f":"IF(('Rastreador de Perda de Peso'!C34=0)*('Rastreador de Perda de Peso'!C33=0),TRUE)","v":false},{"$f":"IF(A13,0,IF('Rastreador de Perda de Peso'!B34=0,'Rastreador de Perda de Peso'!B33+5,'Rastreador de Perda de Peso'!B34))","v":"2013-01-25"},{"$f":"'Rastreador de Perda de Peso'!C34","v":172},{"$nulls":4},{"$error":"#N/A"},{"$error":"#N/A"},{"$f":"IFERROR(AVERAGEIFS(TabelaDePeso[PESO],TabelaDePeso[DATA],\">=\"&H13,TabelaDePeso[DATA],\"<=\"&I13),NA())","v":{"$error":"#N/A"}}]
[{"$f":"IF(('Rastreador de Perda de Peso'!C35=0)*('Rastreador de Perda de Peso'!C34=0),TRUE)","v":false},{"$f":"IF(A14,0,IF('Rastreador de Perda de Peso'!B35=0,'Rastreador de Perda de Peso'!B34+5,'Rastreador de Perda de Peso'!B35))","v":"2013-02-01"},{"$f":"'Rastreador de Perda de Peso'!C35","v":173},{"$nulls":4},{"$error":"#N/A"},{"$error":"#N/A"},{"$f":"IFERROR(AVERAGEIFS(TabelaDePeso[PESO],TabelaDePeso[DATA],\">=\"&H14,TabelaDePeso[DATA],\"<=\"&I14),NA())","v":{"$error":"#N/A"}}]
[{"$f":"IF(('Rastreador de Perda de Peso'!C36=0)*('Rastreador de Perda de Peso'!C35=0),TRUE)","v":false},{"$f":"IF(A15,0,IF('Rastreador de Perda de Peso'!B36=0,'Rastreador de Perda de Peso'!B35+5,'Rastreador de Perda de Peso'!B36))","v":"2013-02-08"},{"$f":"'Rastreador de Perda de Peso'!C36","v":174},{"$nulls":4},{"$error":"#N/A"},{"$error":"#N/A"},{"$f":"IFERROR(AVERAGEIFS(TabelaDePeso[PESO],TabelaDePeso[DATA],\">=\"&H15,TabelaDePeso[DATA],\"<=\"&I15),NA())","v":{"$error":"#N/A"}}]
[{"$f":"IF(('Rastreador de Perda de Peso'!C37=0)*('Rastreador de Perda de Peso'!C36=0),TRUE)","v":false},{"$f":"IF(A16,0,IF('Rastreador de Perda de Peso'!B37=0,'Rastreador de Perda de Peso'!B36+5,'Rastreador de Perda de Peso'!B37))","v":"2013-02-15"},{"$f":"'Rastreador de Perda de Peso'!C37","v":175},{"$nulls":4},{"$error":"#N/A"},{"$error":"#N/A"},{"$f":"IFERROR(AVERAGEIFS(TabelaDePeso[PESO],TabelaDePeso[DATA],\">=\"&H16,TabelaDePeso[DATA],\"<=\"&I16),NA())","v":{"$error":"#N/A"}}]
[{"$f":"IF(('Rastreador de Perda de Peso'!C38=0)*('Rastreador de Perda de Peso'!C37=0),TRUE)","v":false},{"$f":"IF(A17,0,IF('Rastreador de Perda de Peso'!B38=0,'Rastreador de Perda de Peso'!B37+5,'Rastreador de Perda de Peso'!B38))","v":"2013-02-22"},{"$f":"'Rastreador de Perda de Peso'!C38","v":0},{"$nulls":4},{"$error":"#N/A"},{"$error":"#N/A"},{"$f":"IFERROR(AVERAGEIFS(TabelaDePeso[PESO],TabelaDePeso[DATA],\">=\"&H17,TabelaDePeso[DATA],\"<=\"&I17),NA())","v":{"$error":"#N/A"}}]
[{"$f":"IF(('Rastreador de Perda de Peso'!C39=0)*('Rastreador de Perda de Peso'!C38=0),TRUE)","v":true},{"$f":"IF(A18,0,IF('Rastreador de Perda de Peso'!B39=0,'Rastreador de Perda de Peso'!B38+5,'Rastreador de Perda de Peso'!B39))","v":"00:00:00"},{"$f":"'Rastreador de Perda de Peso'!C39","v":0},{"$nulls":4},{"$error":"#N/A"},{"$error":"#N/A"},{"$f":"IFERROR(AVERAGEIFS(TabelaDePeso[PESO],TabelaDePeso[DATA],\">=\"&H18,TabelaDePeso[DATA],\"<=\"&I18),NA())","v":{"$error":"#N/A"}}]
[{"$f":"IF(('Rastreador de Perda de Peso'!C40=0)*('Rastreador de Perda de Peso'!C39=0),TRUE)","v":true},{"$f":"IF(A19,0,IF('Rastreador de Perda de Peso'!B40=0,'Rastreador de Perda de Peso'!B39+5,'Rastreador de Perda de Peso'!B40))","v":"00:00:00"},{"$f":"'Rastreador de Perda de Peso'!C40","v":0},{"$nulls":4},{"$error":"#N/A"},{"$error":"#N/A"},{"$f":"IFERROR(AVERAGEIFS(TabelaDePeso[PESO],TabelaDePeso[DATA],\">=\"&H19,TabelaDePeso[DATA],\"<=\"&I19),NA())","v":{"$error":"#N/A"}}]
[{"$f":"IF(('Rastreador de Perda de Peso'!C41=0)*('Rastreador de Perda de Peso'!C40=0),TRUE)","v":true},{"$f":"IF(A20,0,IF('Rastreador de Perda de Peso'!B41=0,'Rastreador de Perda de Peso'!B40+5,'Rastreador de Perda de Peso'!B41))","v":"00:00:00"},{"$f":"'Rastreador de Perda de Peso'!C41","v":0},{"$nulls":4},{"$error":"#N/A"},{"$error":"#N/A"},{"$f":"IFERROR(AVERAGEIFS(TabelaDePeso[PESO],TabelaDePeso[DATA],\">=\"&H20,TabelaDePeso[DATA],\"<=\"&I20),NA())","v":{"$error":"#N/A"}}]
[{"$f":"IF(('Rastreador de Perda de Peso'!C42=0)*('Rastreador de Perda de Peso'!C41=0),TRUE)","v":true},{"$f":"IF(A21,0,IF('Rastreador de Perda de Peso'!B42=0,'Rastreador de Perda de Peso'!B41+5,'Rastreador de Perda de Peso'!B42))","v":"00:00:00"},{"$f":"'Rastreador de Perda de Peso'!C42","v":0},{"$nulls":4},{"$error":"#N/A"},{"$error":"#N/A"},{"$f":"IFERROR(AVERAGEIFS(TabelaDePeso[PESO],TabelaDePeso[DATA],\">=\"&H21,TabelaDePeso[DATA],\"<=\"&I21),NA())","v":{"$error":"#N/A"}}]
[{"$f":"IF(('Rastreador de Perda de Peso'!C43=0)*('Rastreador de Perda de Peso'!C42=0),TRUE)","v":true},{"$f":"IF(A22,0,IF('Rastreador de Perda de Peso'!B43=0,'Rastreador de Perda de Peso'!B42+5,'Rastreador de Perda de Peso'!B43))","v":"00:00:00"},{"$f":"'Rastreador de Perda de Peso'!C43","v":0},{"$nulls":4},{"$error":"#N/A"},{"$error":"#N/A"},{"$f":"IFERROR(AVERAGEIFS(TabelaDePeso[PESO],TabelaDePeso[DATA],\">=\"&H22,TabelaDePeso[DATA],\"<=\"&I22),NA())","v":{"$error":"#N/A"}}]
[{"$f":"IF(('Rastreador de Perda de Peso'!C44=0)*('Rastreador de Perda de Peso'!C43=0),TRUE)","v":true},{"$f":"IF(A23,0,IF('Rastreador de Perda de Peso'!B44=0,'Rastreador de Perda de Peso'!B43+5,'Rastreador de Perda de Peso'!B44))","v":"00:00:00"},{"$f":"'Rastreador de Perda de Peso'!C44","v":0},{"$nulls":4},{"$error":"#N/A"},{"$error":"#N/A"},{"$f":"IFERROR(AVERAGEIFS(TabelaDePeso[PESO],TabelaDePeso[DATA],\">=\"&H23,TabelaDePeso[DATA],\"<=\"&I23),NA())","v":{"$error":"#N/A"}}]
[{"$f":"IF(('Rastreador de Perda de Peso'!C45=0)*('Rastreador de Perda de Peso'!C44=0),TRUE)","v":true},{"$f":"IF(A24,0,IF('Rastreador de Perda de Peso'!B45=0,'Rastreador de Perda de Peso'!B44+5,'Rastreador de Perda de Peso'!B45))","v":"00:00:00"},{"$f":"'Rastreador de Perda de Peso'!C45","v":0},{"$nulls":4},{"$error":"#N/A"},{"$error":"#N/A"},{"$f":"IFERROR(AVERAGEIFS(TabelaDePeso[PESO],TabelaDePeso[DATA],\">=\"&H24,TabelaDePeso[DATA],\"<=\"&I24),NA())","v":{"$error":"#N/A"}}]
[{"$f":"IF(('Rastreador de Perda de Peso'!C46=0)*('Rastreador de Perda de Peso'!C45=0),TRUE)","v":true},{"$f":"IF(A25,0,IF('Rastreador de Perda de Peso'!B46=0,'Rastreador de Perda de Peso'!B45+5,'Rastreador de Perda de Peso'!B46))","v":"00:00:00"},{"$f":"'Rastreador de Perda de Peso'!C46","v":0},{"$nulls":4},{"$error":"#N/A"},{"$error":"#N/A"},{"$f":"IFERROR(AVERAGEIFS(TabelaDePeso[PESO],TabelaDePeso[DATA],\">=\"&H25,TabelaDePeso[DATA],\"<=\"&I25),NA())","v":{"$error":"#N/A"}}]
[{"$f":"IF(('Rastreador de Perda de Peso'!C47=0)*('Rastreador de Perda de Peso'!C46=0),TRUE)","v":true},{"$f":"IF(A26,0,IF('Rastreador de Perda de Peso'!B47=0,'Rastreador de Perda de Peso'!B46+5,'Rastreador de Perda de Peso'!B47))","v":"00:00:00"},{"$f":"'Rastreador de Perda de Peso'!C47","v":0},{"$nulls":4},{"$error":"#N/A"},{"$error":"#N/A"},{"$f":"IFERROR(AVERAGEIFS(TabelaDePeso[PESO],TabelaDePeso[DATA],\">=\"&H26,TabelaDePeso[DATA],\"<=\"&I26),NA())","v":{"$error":"#N/A"}}]
[{"$f":"IF(('Rastreador de Perda de Peso'!C48=0)*('Rastreador de Perda de Peso'!C47=0),TRUE)","v":true},{"$f":"IF(A27,0,IF('Rastreador de Perda de Peso'!B48=0,'Rastreador de Perda de Peso'!B47+5,'Rastreador de Perda de Peso'!B48))","v":"00:00:00"},{"$f":"'Rastreador de Perda de Peso'!C48","v":0},{"$nulls":4},{"$error":"#N/A"},{"$error":"#N/A"},{"$f":"IFERROR(AVERAGEIFS(TabelaDePeso[PESO],TabelaDePeso[DATA],\">=\"&H27,TabelaDePeso[DATA],\"<=\"&I27),NA())","v":{"$error":"#N/A"}}]
[{"$f":"IF(('Rastreador de Perda de Peso'!C49=0)*('Rastreador de Perda de Peso'!C48=0),TRUE)","v":true},{"$f":"IF(A28,0,IF('Rastreador de Perda de Peso'!B49=0,'Rastreador de Perda de Peso'!B48+5,'Rastreador de Perda de Peso'!B49))","v":"00:00:00"},{"$f":"'Rastreador de Perda de Peso'!C49","v":0},{"$nulls":4},{"$error":"#N/A"},{"$error":"#N/A"},{"$f":"IFERROR(AVERAGEIFS(TabelaDePeso[PESO],TabelaDePeso[DATA],\">=\"&H28,TabelaDePeso[DATA],\"<=\"&I28),NA())","v":{"$error":"#N/A"}}]
[{"$f":"IF(('Rastreador de Perda de Peso'!C50=0)*('Rastreador de Perda de Peso'!C49=0),TRUE)","v":true},{"$f":"IF(A29,0,IF('Rastreador de Perda de Peso'!B50=0,'Rastreador de Perda de Peso'!B49+5,'Rastreador de Perda de Peso'!B50))","v":"00:00:00"},{"$f":"'Rastreador de Perda de Peso'!C50","v":0}]
[{"$f":"IF(('Rastreador de Perda de Peso'!C51=0)*('Rastreador de Perda de Peso'!C50=0),TRUE)","v":true},{"$f":"IF(A30,0,IF('Rastreador de Perda de Peso'!B51=0,'Rastreador de Perda de Peso'!B50+5,'Rastreador de Perda de Peso'!B51))","v":"00:00:00"},{"$f":"'Rastreador de Perda de Peso'!C51","v":0}]
[{"$f":"IF(('Rastreador de Perda de Peso'!C52=0)*('Rastreador de Perda de Peso'!C51=0),TRUE)","v":true},{"$f":"IF(A31,0,IF('Rastreador de Perda de Peso'!B52=0,'Rastreador de Perda de Peso'!B51+5,'Rastreador de Perda de Peso'!B52))","v":"00:00:00"},{"$f":"'Rastreador de Perda de Peso'!C52","v":0}]
[{"$f":"IF(('Rastreador de Perda de Peso'!C53=0)*('Rastreador de Perda de Peso'!C52=0),TRUE)","v":true},{"$f":"IF(A32,0,IF('Rastreador de Perda de Peso'!B53=0,'Rastreador de Perda de Peso'!B52+5,'Rastreador de Perda de Peso'!B53))","v":"00:00:00"},{"$f":"'Rastreador de Perda de Peso'!C53","v":0}]
[{"$f":"IF(('Rastreador de Perda de Peso'!C54=0)*('Rastreador de Perda de Peso'!C53=0),TRUE)","v":true},{"$f":"IF(A33,0,IF('Rastreador de Perda de Peso'!B54=0,'Rastreador de Perda de Peso'!B53+5,'Rastreador de Perda de Peso'!B54))","v":"00:00:00"},{"$f":"'Rastreador de Perda de Peso'!C54","v":0}]
[{"$f":"IF(('Rastreador de Perda de Peso'!C55=0)*('Rastreador de Perda de Peso'!C54=0),TRUE)","v":true},{"$f":"IF(A34,0,IF('Rastreador de Perda de Peso'!B55=0,'Rastreador de Perda de Peso'!B54+5,'Rastreador de Perda de Peso'!B55))","v":"00:00:00"},{"$f":"'Rastreador de Perda de Peso'!C55","v":0}]
[{"$f":"IF(('Rastreador de Perda de Peso'!C56=0)*('Rastreador de Perda de Peso'!C55=0),TRUE)","v":true},{"$f":"IF(A35,0,IF('Rastreador de Perda de Peso'!B56=0,'Rastreador de Perda de Peso'!B55+5,'Rastreador de Perda de Peso'!B56))","v":"00:00:00"},{"$f":"'Rastreador de Perda de Peso'!C56","v":0}]
[{"$f":"IF(('Rastreador de Perda de Peso'!C57=0)*('Rastreador de Perda de Peso'!C56=0),TRUE)","v":true},{"$f":"IF(A36,0,IF('Rastreador de Perda de Peso'!B57=0,'Rastreador de Perda de Peso'!B56+5,'Rastreador de Perda de Peso'!B57))","v":"00:00:00"},{"$f":"'Rastreador de Perda de Peso'!C57","v":0}]
[{"$f":"IF(('Rastreador de Perda de Peso'!C58=0)*('Rastreador de Perda de Peso'!C57=0),TRUE)","v":true},{"$f":"IF(A37,0,IF('Rastreador de Perda de Peso'!B58=0,'Rastreador de Perda de Peso'!B57+5,'Rastreador de Perda de Peso'!B58))","v":"00:00:00"},{"$f":"'Rastreador de Perda de Peso'!C58","v":0}]
[{"$f":"IF(('Rastreador de Perda de Peso'!C59=0)*('Rastreador de Perda de Peso'!C58=0),TRUE)","v":true},{"$f":"IF(A38,0,IF('Rastreador de Perda de Peso'!B59=0,'Rastreador de Perda de Peso'!B58+5,'Rastreador de Perda de Peso'!B59))","v":"00:00:00"},{"$f":"'Rastreador de Perda de Peso'!C59","v":0}]
[{"$f":"IF(('Rastreador de Perda de Peso'!C60=0)*('Rastreador de Perda de Peso'!C59=0),TRUE)","v":true},{"$f":"IF(A39,0,IF('Rastreador de Perda de Peso'!B60=0,'Rastreador de Perda de Peso'!B59+5,'Rastreador de Perda de Peso'!B60))","v":"00:00:00"},{"$f":"'Rastreador de Perda de Peso'!C60","v":0}]
[{"$f":"IF(('Rastreador de Perda de Peso'!C61=0)*('Rastreador de Perda de Peso'!C60=0),TRUE)","v":true},{"$f":"IF(A40,0,IF('Rastreador de Perda de Peso'!B61=0,'Rastreador de Perda de Peso'!B60+5,'Rastreador de Perda de Peso'!B61))","v":"00:00:00"},{"$f":"'Rastreador de Perda de Peso'!C61","v":0}]
[{"$f":"IF(('Rastreador de Perda de Peso'!C62=0)*('Rastreador de Perda de Peso'!C61=0),TRUE)","v":true},{"$f":"IF(A41,0,IF('Rastreador de Perda de Peso'!B62=0,'Rastreador de Perda de Peso'!B61+5,'Rastreador de Perda de Peso'!B62))","v":"00:00:00"},{"$f":"'Rastreador de Perda de Peso'!C62","v":0}]
[{"$f":"IF(('Rastreador de Perda de Peso'!C63=0)*('Rastreador de Perda de Peso'!C62=0),TRUE)","v":true},{"$f":"IF(A42,0,IF('Rastreador de Perda de Peso'!B63=0,'Rastreador de Perda de Peso'!B62+5,'Rastreador de Perda de Peso'!B63))","v":"00:00:00"},{"$f":"'Rastreador de Perda de Peso'!C63","v":0}]
[{"$f":"IF(('Rastreador de Perda de Peso'!C64=0)*('Rastreador de Perda de Peso'!C63=0),TRUE)","v":true},{"$f":"IF(A43,0,IF('Rastreador de Perda de Peso'!B64=0,'Rastreador de Perda de Peso'!B63+5,'Rastreador de Perda de Peso'!B64))","v":"00:00:00"},{"$f":"'Rastreador de Perda de Peso'!C64","v":0}]
[{"$f":"IF(('Rastreador de Perda de Peso'!C65=0)*('Rastreador de Perda de Peso'!C64=0),TRUE)","v":true},{"$f":"IF(A44,0,IF('Rastreador de Perda de Peso'!B65=0,'Rastreador de Perda de Peso'!B64+5,'Rastreador de Perda de Peso'!B65))","v":"00:00:00"},{"$f":"'Rastreador de Perda de Peso'!C65","v":0}]
[{"$f":"IF(('Rastreador de Perda de Peso'!C66=0)*('Rastreador de Perda de Peso'!C65=0),TRUE)","v":true},{"$f":"IF(A45,0,IF('Rastreador de Perda de Peso'!B66=0,'Rastreador de Perda de Peso'!B65+5,'Rastreador de Perda de Peso'!B66))","v":"00:00:00"},{"$f":"'Rastreador de Perda de Peso'!C66","v":0}]
[{"$f":"IF(('Rastreador de Perda de Peso'!C67=0)*('Rastreador de Perda de Peso'!C66=0),TRUE)","v":true},{"$f":"IF(A46,0,IF('Rastreador de Perda de Peso'!B67=0,'Rastreador de Perda de Peso'!B66+5,'Rastreador de Perda de Peso'!B67))","v":"00:00:00"},{"$f":"'Rastreador de Perda de Peso'!C67","v":0}]
[{"$f":"IF(('Rastreador de Perda de Peso'!C68=0)*('Rastreador de Perda de Peso'!C67=0),TRUE)","v":true},{"$f":"IF(A47,0,IF('Rastreador de Perda de Peso'!B68=0,'Rastreador de Perda de Peso'!B67+5,'Rastreador de Perda de Peso'!B68))","v":"00:00:00"},{"$f":"'Rastreador de Perda de Peso'!C68","v":0}]
[{"$f":"IF(('Rastreador de Perda de Peso'!C69=0)*('Rastreador de Perda de Peso'!C68=0),TRUE)","v":true},{"$f":"IF(A48,0,IF('Rastreador de Perda de Peso'!B69=0,'Rastreador de Perda de Peso'!B68+5,'Rastreador de Perda de Peso'!B69))","v":"00:00:00"},{"$f":"'Rastreador de Perda de Peso'!C69","v":0}]
[{"$f":"IF(('Rastreador de Perda de Peso'!C70=0)*('Rastreador de Perda de Peso'!C69=0),TRUE)","v":true},{"$f":"IF(A49,0,IF('Rastreador de Perda de Peso'!B70=0,'Rastreador de Perda de Peso'!B69+5,'Rastreador de Perda de Peso'!B70))","v":"00:00:00"},{"$f":"'Rastreador de Perda de Peso'!C70","v":0}]
[{"$f":"IF(('Rastreador de Perda de Peso'!C71=0)*('Rastreador de Perda de Peso'!C70=0),TRUE)","v":true},{"$f":"IF(A50,0,IF('Rastreador de Perda de Peso'!B71=0,'Rastreador de Perda de Peso'!B70+5,'Rastreador de Perda de Peso'!B71))","v":"00:00:00"},{"$f":"'Rastreador de Perda de Peso'!C71","v":0}]
[{"$f":"IF(('Rastreador de Perda de Peso'!C72=0)*('Rastreador de Perda de Peso'!C71=0),TRUE)","v":true},{"$f":"IF(A51,0,IF('Rastreador de Perda de Peso'!B72=0,'Rastreador de Perda de Peso'!B71+5,'Rastreador de Perda de Peso'!B72))","v":"00:00:00"},{"$f":"'Rastreador de Perda de Peso'!C72","v":0}]
[{"$f":"IF(('Rastreador de Perda de Peso'!C73=0)*('Rastreador de Perda de Peso'!C72=0),TRUE)","v":true},{"$f":"IF(A52,0,IF('Rastreador de Perda de Peso'!B73=0,'Rastreador de Perda de Peso'!B72+5,'Rastreador de Perda de Peso'!B73))","v":"00:00:00"},{"$f":"'Rastreador de Perda de Peso'!C73","v":0}]
[{"$f":"IF(('Rastreador de Perda de Peso'!C74=0)*('Rastreador de Perda de Peso'!C73=0),TRUE)","v":true},{"$f":"IF(A53,0,IF('Rastreador de Perda de Peso'!B74=0,'Rastreador de Perda de Peso'!B73+5,'Rastreador de Perda de Peso'!B74))","v":"00:00:00"},{"$f":"'Rastreador de Perda de Peso'!C74","v":0}]
[{"$f":"IF(('Rastreador de Perda de Peso'!C75=0)*('Rastreador de Perda de Peso'!C74=0),TRUE)","v":true},{"$f":"IF(A54,0,IF('Rastreador de Perda de Peso'!B75=0,'Rastreador de Perda de Peso'!B74+5,'Rastreador de Perda de Peso'!B75))","v":"00:00:00"},{"$f":"'Rastreador de Perda de Peso'!C75","v":0}]
[{"$f":"IF(('Rastreador de Perda de Peso'!C76=0)*('Rastreador de Perda de Peso'!C75=0),TRUE)","v":true},{"$f":"IF(A55,0,IF('Rastreador de Perda de Peso'!B76=0,'Rastreador de Perda de Peso'!B75+5,'Rastreador de Perda de Peso'!B76))","v":"00:00:00"},{"$f":"'Rastreador de Perda de Peso'!C76","v":0}]
[{"$f":"IF(('Rastreador de Perda de Peso'!C77=0)*('Rastreador de Perda de Peso'!C76=0),TRUE)","v":true},{"$f":"IF(A56,0,IF('Rastreador de Perda de Peso'!B77=0,'Rastreador de Perda de Peso'!B76+5,'Rastreador de Perda de Peso'!B77))","v":"00:00:00"},{"$f":"'Rastreador de Perda de Peso'!C77","v":0}]
[{"$f":"IF(('Rastreador de Perda de Peso'!C78=0)*('Rastreador de Perda de Peso'!C77=0),TRUE)","v":true},{"$f":"IF(A57,0,IF('Rastreador de Perda de Peso'!B78=0,'Rastreador de Perda de Peso'!B77+5,'Rastreador de Perda de Peso'!B78))","v":"00:00:00"},{"$f":"'Rastreador de Perda de Peso'!C78","v":0}]
[{"$f":"IF(('Rastreador de Perda de Peso'!C79=0)*('Rastreador de Perda de Peso'!C78=0),TRUE)","v":true},{"$f":"IF(A58,0,IF('Rastreador de Perda de Peso'!B79=0,'Rastreador de Perda de Peso'!B78+5,'Rastreador de Perda de Peso'!B79))","v":"00:00:00"},{"$f":"'Rastreador de Perda de Peso'!C79","v":0}]
[{"$f":"IF(('Rastreador de Perda de Peso'!C80=0)*('Rastreador de Perda de Peso'!C79=0),TRUE)","v":true},{"$f":"IF(A59,0,IF('Rastreador de Perda de Peso'!B80=0,'Rastreador de Perda de Peso'!B79+5,'Rastreador de Perda de Peso'!B80))","v":"00:00:00"},{"$f":"'Rastreador de Perda de Peso'!C80","v":0}]
[{"$f":"IF(('Rastreador de Perda de Peso'!C81=0)*('Rastreador de Perda de Peso'!C80=0),TRUE)","v":true},{"$f":"IF(A60,0,IF('Rastreador de Perda de Peso'!B81=0,'Rastreador de Perda de Peso'!B80+5,'Rastreador de Perda de Peso'!B81))","v":"00:00:00"},{"$f":"'Rastreador de Perda de Peso'!C81","v":0}]
[{"$f":"IF(('Rastreador de Perda de Peso'!C82=0)*('Rastreador de Perda de Peso'!C81=0),TRUE)","v":true},{"$f":"IF(A61,0,IF('Rastreador de Perda de Peso'!B82=0,'Rastreador de Perda de Peso'!B81+5,'Rastreador de Perda de Peso'!B82))","v":"00:00:00"},{"$f":"'Rastreador de Perda de Peso'!C82","v":0}]
[{"$f":"IF(('Rastreador de Perda de Peso'!C83=0)*('Rastreador de Perda de Peso'!C82=0),TRUE)","v":true},{"$f":"IF(A62,0,IF('Rastreador de Perda de Peso'!B83=0,'Rastreador de Perda de Peso'!B82+5,'Rastreador de Perda de Peso'!B83))","v":"00:00:00"},{"$f":"'Rastreador de Perda de Peso'!C83","v":0}]
[{"$f":"IF(('Rastreador de Perda de Peso'!C84=0)*('Rastreador de Perda de Peso'!C83=0),TRUE)","v":true},{"$f":"IF(A63,0,IF('Rastreador de Perda de Peso'!B84=0,'Rastreador de Perda de Peso'!B83+5,'Rastreador de Perda de Peso'!B84))","v":"00:00:00"},{"$f":"'Rastreador de Perda de Peso'!C84","v":0}]
[{"$f":"IF(('Rastreador de Perda de Peso'!C85=0)*('Rastreador de Perda de Peso'!C84=0),TRUE)","v":true},{"$f":"IF(A64,0,IF('Rastreador de Perda de Peso'!B85=0,'Rastreador de Perda de Peso'!B84+5,'Rastreador de Perda de Peso'!B85))","v":"00:00:00"},{"$f":"'Rastreador de Perda de Peso'!C85","v":0}]
[{"$f":"IF(('Rastreador de Perda de Peso'!C86=0)*('Rastreador de Perda de Peso'!C85=0),TRUE)","v":true},{"$f":"IF(A65,0,IF('Rastreador de Perda de Peso'!B86=0,'Rastreador de Perda de Peso'!B85+5,'Rastreador de Perda de Peso'!B86))","v":"00:00:00"},{"$f":"'Rastreador de Perda de Peso'!C86","v":0}]
[{"$f":"IF(('Rastreador de Perda de Peso'!C87=0)*('Rastreador de Perda de Peso'!C86=0),TRUE)","v":true},{"$f":"IF(A66,0,IF('Rastreador de Perda de Peso'!B87=0,'Rastreador de Perda de Peso'!B86+5,'Rastreador de Perda de Peso'!B87))","v":"00:00:00"},{"$f":"'Rastreador de Perda de Peso'!C87","v":0}]
[{"$f":"IF(('Rastreador de Perda de Peso'!C88=0)*('Rastreador de Perda de Peso'!C87=0),TRUE)","v":true},{"$f":"IF(A67,0,IF('Rastreador de Perda de Peso'!B88=0,'Rastreador de Perda de Peso'!B87+5,'Rastreador de Perda de Peso'!B88))","v":"00:00:00"},{"$f":"'Rastreador de Perda de Peso'!C88","v":0}]
[{"$f":"IF(('Rastreador de Perda de Peso'!C89=0)*('Rastreador de Perda de Peso'!C88=0),TRUE)","v":true},{"$f":"IF(A68,0,IF('Rastreador de Perda de Peso'!B89=0,'Rastreador de Perda de Peso'!B88+5,'Rastreador de Perda de Peso'!B89))","v":"00:00:00"},{"$f":"'Rastreador de Perda de Peso'!C89","v":0}]
[{"$f":"IF(('Rastreador de Perda de Peso'!C90=0)*('Rastreador de Perda de Peso'!C89=0),TRUE)","v":true},{"$f":"IF(A69,0,IF('Rastreador de Perda de Peso'!B90=0,'Rastreador de Perda de Peso'!B89+5,'Rastreador de Perda de Peso'!B90))","v":"00:00:00"},{"$f":"'Rastreador de Perda de Peso'!C90","v":0}]
[{"$f":"IF(('Rastreador de Perda de Peso'!C91=0)*('Rastreador de Perda de Peso'!C90=0),TRUE)","v":true},{"$f":"IF(A70,0,IF('Rastreador de Perda de Peso'!B91=0,'Rastreador de Perda de Peso'!B90+5,'Rastreador de Perda de Peso'!B91))","v":"00:00:00"},{"$f":"'Rastreador de Perda de Peso'!C91","v":0}]
[{"$f":"IF(('Rastreador de Perda de Peso'!C92=0)*('Rastreador de Perda de Peso'!C91=0),TRUE)","v":true},{"$f":"IF(A71,0,IF('Rastreador de Perda de Peso'!B92=0,'Rastreador de Perda de Peso'!B91+5,'Rastreador de Perda de Peso'!B92))","v":"00:00:00"},{"$f":"'Rastreador de Perda de Peso'!C92","v":0}]
[{"$f":"IF(('Rastreador de Perda de Peso'!C93=0)*('Rastreador de Perda de Peso'!C92=0),TRUE)","v":true},{"$f":"IF(A72,0,IF('Rastreador de Perda de Peso'!B93=0,'Rastreador de Perda de Peso'!B92+5,'Rastreador de Perda de Peso'!B93))","v":"00:00:00"},{"$f":"'Rastreador de Perda de Peso'!C93","v":0}]
[{"$f":"IF(('Rastreador de Perda de Peso'!C94=0)*('Rastreador de Perda de Peso'!C93=0),TRUE)","v":true},{"$f":"IF(A73,0,IF('Rastreador de Perda de Peso'!B94=0,'Rastreador de Perda de Peso'!B93+5,'Rastreador de Perda de Peso'!B94))","v":"00:00:00"},{"$f":"'Rastreador de Perda de Peso'!C94","v":0}]
[{"$f":"IF(('Rastreador de Perda de Peso'!C95=0)*('Rastreador de Perda de Peso'!C94=0),TRUE)","v":true},{"$f":"IF(A74,0,IF('Rastreador de Perda de Peso'!B95=0,'Rastreador de Perda de Peso'!B94+5,'Rastreador de Perda de Peso'!B95))","v":"00:00:00"},{"$f":"'Rastreador de Perda de Peso'!C95","v":0}]
[{"$f":"IF(('Rastreador de Perda de Peso'!C96=0)*('Rastreador de Perda de Peso'!C95=0),TRUE)","v":true},{"$f":"IF(A75,0,IF('Rastreador de Perda de Peso'!B96=0,'Rastreador de Perda de Peso'!B95+5,'Rastreador de Perda de Peso'!B96))","v":"00:00:00"},{"$f":"'Rastreador de Perda de Peso'!C96","v":0}]
[{"$f":"IF(('Rastreador de Perda de Peso'!C97=0)*('Rastreador de Perda de Peso'!C96=0),TRUE)","v":true},{"$f":"IF(A76,0,IF('Rastreador de Perda de Peso'!B97=0,'Rastreador de Perda de Peso'!B96+5,'Rastreador de Perda de Peso'!B97))","v":"00:00:00"},{"$f":"'Rastreador de Perda de Peso'!C97","v":0}]
[{"$f":"IF(('Rastreador de Perda de Peso'!C98=0)*('Rastreador de Perda de Peso'!C97=0),TRUE)","v":true},{"$f":"IF(A77,0,IF('Rastreador de Perda de Peso'!B98=0,'Rastreador de Perda de Peso'!B97+5,'Rastreador de Perda de Peso'!B98))","v":"00:00:00"},{"$f":"'Rastreador de Perda de Peso'!C98","v":0}]
[{"$f":"IF(('Rastreador de Perda de Peso'!C99=0)*('Rastreador de Perda de Peso'!C98=0),TRUE)","v":true},{"$f":"IF(A78,0,IF('Rastreador de Perda de Peso'!B99=0,'Rastreador de Perda de Peso'!B98+5,'Rastreador de Perda de Peso'!B99))","v":"00:00:00"},{"$f":"'Rastreador de Perda de Peso'!C99","v":0}]
[{"$f":"IF(('Rastreador de Perda de Peso'!C100=0)*('Rastreador de Perda de Peso'!C99=0),TRUE)","v":true},{"$f":"IF(A79,0,IF('Rastreador de Perda de Peso'!B100=0,'Rastreador de Perda de Peso'!B99+5,'Rastreador de Perda de Peso'!B100))","v":"00:00:00"},{"$f":"'Rastreador de Perda de Peso'!C100","v":0}]
[{"$f":"IF(('Rastreador de Perda de Peso'!C101=0)*('Rastreador de Perda de Peso'!C100=0),TRUE)","v":true},{"$f":"IF(A80,0,IF('Rastreador de Perda de Peso'!B101=0,'Rastreador de Perda de Peso'!B100+5,'Rastreador de Perda de Peso'!B101))","v":"00:00:00"},{"$f":"'Rastreador de Perda de Peso'!C101","v":0}]
[{"$f":"IF(('Rastreador de Perda de Peso'!C102=0)*('Rastreador de Perda de Peso'!C101=0),TRUE)","v":true},{"$f":"IF(A81,0,IF('Rastreador de Perda de Peso'!B102=0,'Rastreador de Perda de Peso'!B101+5,'Rastreador de Perda de Peso'!B102))","v":"00:00:00"},{"$f":"'Rastreador de Perda de Peso'!C102","v":0}]
[{"$f":"IF(('Rastreador de Perda de Peso'!C103=0)*('Rastreador de Perda de Peso'!C102=0),TRUE)","v":true},{"$f":"IF(A82,0,IF('Rastreador de Perda de Peso'!B103=0,'Rastreador de Perda de Peso'!B102+5,'Rastreador de Perda de Peso'!B103))","v":"00:00:00"},{"$f":"'Rastreador de Perda de Peso'!C103","v":0}]
[{"$f":"IF(('Rastreador de Perda de Peso'!C104=0)*('Rastreador de Perda de Peso'!C103=0),TRUE)","v":true},{"$f":"IF(A83,0,IF('Rastreador de Perda de Peso'!B104=0,'Rastreador de Perda de Peso'!B103+5,'Rastreador de Perda de Peso'!B104))","v":"00:00:00"},{"$f":"'Rastreador de Perda de Peso'!C104","v":0}]
[{"$f":"IF(('Rastreador de Perda de Peso'!C105=0)*('Rastreador de Perda de Peso'!C104=0),TRUE)","v":true},{"$f":"IF(A84,0,IF('Rastreador de Perda de Peso'!B105=0,'Rastreador de Perda de Peso'!B104+5,'Rastreador de Perda de Peso'!B105))","v":"00:00:00"},{"$f":"'Rastreador de Perda de Peso'!C105","v":0}]
[{"$f":"IF(('Rastreador de Perda de Peso'!C106=0)*('Rastreador de Perda de Peso'!C105=0),TRUE)","v":true},{"$f":"IF(A85,0,IF('Rastreador de Perda de Peso'!B106=0,'Rastreador de Perda de Peso'!B105+5,'Rastreador de Perda de Peso'!B106))","v":"00:00:00"},{"$f":"'Rastreador de Perda de Peso'!C106","v":0}]
[{"$f":"IF(('Rastreador de Perda de Peso'!C107=0)*('Rastreador de Perda de Peso'!C106=0),TRUE)","v":true},{"$f":"IF(A86,0,IF('Rastreador de Perda de Peso'!B107=0,'Rastreador de Perda de Peso'!B106+5,'Rastreador de Perda de Peso'!B107))","v":"00:00:00"},{"$f":"'Rastreador de Perda de Peso'!C107","v":0}]
[{"$f":"IF(('Rastreador de Perda de Peso'!C108=0)*('Rastreador de Perda de Peso'!C107=0),TRUE)","v":true},{"$f":"IF(A87,0,IF('Rastreador de Perda de Peso'!B108=0,'Rastreador de Perda de Peso'!B107+5,'Rastreador de Perda de Peso'!B108))","v":"00:00:00"},{"$f":"'Rastreador de Perda de Peso'!C108","v":0}]
[{"$f":"IF(('Rastreador de Perda de Peso'!C109=0)*('Rastreador de Perda de Peso'!C108=0),TRUE)","v":true},{"$f":"IF(A88,0,IF('Rastreador de Perda de Peso'!B109=0,'Rastreador de Perda de Peso'!B108+5,'Rastreador de Perda de Peso'!B109))","v":"00:00:00"},{"$f":"'Rastreador de Perda de Peso'!C109","v":0}]
[{"$f":"IF(('Rastreador de Perda de Peso'!C110=0)*('Rastreador de Perda de Peso'!C109=0),TRUE)","v":true},{"$f":"IF(A89,0,IF('Rastreador de Perda de Peso'!B110=0,'Rastreador de Perda de Peso'!B109+5,'Rastreador de Perda de Peso'!B110))","v":"00:00:00"},{"$f":"'Rastreador de Perda de Peso'!C110","v":0}]
[{"$f":"IF(('Rastreador de Perda de Peso'!C111=0)*('Rastreador de Perda de Peso'!C110=0),TRUE)","v":true},{"$f":"IF(A90,0,IF('Rastreador de Perda de Peso'!B111=0,'Rastreador de Perda de Peso'!B110+5,'Rastreador de Perda de Peso'!B111))","v":"00:00:00"},{"$f":"'Rastreador de Perda de Peso'!C111","v":0}]
[{"$f":"IF(('Rastreador de Perda de Peso'!C112=0)*('Rastreador de Perda de Peso'!C111=0),TRUE)","v":true},{"$f":"IF(A91,0,IF('Rastreador de Perda de Peso'!B112=0,'Rastreador de Perda de Peso'!B111+5,'Rastreador de Perda de Peso'!B112))","v":"00:00:00"},{"$f":"'Rastreador de Perda de Peso'!C112","v":0}]
[{"$f":"IF(('Rastreador de Perda de Peso'!C113=0)*('Rastreador de Perda de Peso'!C112=0),TRUE)","v":true},{"$f":"IF(A92,0,IF('Rastreador de Perda de Peso'!B113=0,'Rastreador de Perda de Peso'!B112+5,'Rastreador de Perda de Peso'!B113))","v":"00:00:00"},{"$f":"'Rastreador de Perda de Peso'!C113","v":0}]
[{"$f":"IF(('Rastreador de Perda de Peso'!C114=0)*('Rastreador de Perda de Peso'!C113=0),TRUE)","v":true},{"$f":"IF(A93,0,IF('Rastreador de Perda de Peso'!B114=0,'Rastreador de Perda de Peso'!B113+5,'Rastreador de Perda de Peso'!B114))","v":"00:00:00"},{"$f":"'Rastreador de Perda de Peso'!C114","v":0}]
[{"$f":"IF(('Rastreador de Perda de Peso'!C115=0)*('Rastreador de Perda de Peso'!C114=0),TRUE)","v":true},{"$f":"IF(A94,0,IF('Rastreador de Perda de Peso'!B115=0,'Rastreador de Perda de Peso'!B114+5,'Rastreador de Perda de Peso'!B115))","v":"00:00:00"},{"$f":"'Rastreador de Perda de Peso'!C115","v":0}]
[{"$f":"IF(('Rastreador de Perda de Peso'!C116=0)*('Rastreador de Perda de Peso'!C115=0),TRUE)","v":true},{"$f":"IF(A95,0,IF('Rastreador de Perda de Peso'!B116=0,'Rastreador de Perda de Peso'!B115+5,'Rastreador de Perda de Peso'!B116))","v":"00:00:00"},{"$f":"'Rastreador de Perda de Peso'!C116","v":0}]
[{"$f":"IF(('Rastreador de Perda de Peso'!C117=0)*('Rastreador de Perda de Peso'!C116=0),TRUE)","v":true},{"$f":"IF(A96,0,IF('Rastreador de Perda de Peso'!B117=0,'Rastreador de Perda de Peso'!B116+5,'Rastreador de Perda de Peso'!B117))","v":"00:00:00"},{"$f":"'Rastreador de Perda de Peso'!C117","v":0}]
[{"$f":"IF(('Rastreador de Perda de Peso'!C118=0)*('Rastreador de Perda de Peso'!C117=0),TRUE)","v":true},{"$f":"IF(A97,0,IF('Rastreador de Perda de Peso'!B118=0,'Rastreador de Perda de Peso'!B117+5,'Rastreador de Perda de Peso'!B118))","v":"00:00:00"},{"$f":"'Rastreador de Perda de Peso'!C118","v":0}]
[{"$f":"IF(('Rastreador de Perda de Peso'!C119=0)*('Rastreador de Perda de Peso'!C118=0),TRUE)","v":true},{"$f":"IF(A98,0,IF('Rastreador de Perda de Peso'!B119=0,'Rastreador de Perda de Peso'!B118+5,'Rastreador de Perda de Peso'!B119))","v":"00:00:00"},{"$f":"'Rastreador de Perda de Peso'!C119","v":0}]
[{"$f":"IF(('Rastreador de Perda de Peso'!C120=0)*('Rastreador de Perda de Peso'!C119=0),TRUE)","v":true},{"$f":"IF(A99,0,IF('Rastreador de Perda de Peso'!B120=0,'Rastreador de Perda de Peso'!B119+5,'Rastreador de Perda de Peso'!B120))","v":"00:00:00"},{"$f":"'Rastreador de Perda de Peso'!C120","v":0}]
[{"$f":"IF(('Rastreador de Perda de Peso'!C121=0)*('Rastreador de Perda de Peso'!C120=0),TRUE)","v":true},{"$f":"IF(A100,0,IF('Rastreador de Perda de Peso'!B121=0,'Rastreador de Perda de Peso'!B120+5,'Rastreador de Perda de Peso'!B121))","v":"00:00:00"},{"$f":"'Rastreador de Perda de Peso'!C121","v":0}]
[{"$f":"IF(('Rastreador de Perda de Peso'!C122=0)*('Rastreador de Perda de Peso'!C121=0),TRUE)","v":true},{"$f":"IF(A101,0,IF('Rastreador de Perda de Peso'!B122=0,'Rastreador de Perda de Peso'!B121+5,'Rastreador de Perda de Peso'!B122))","v":"00:00:00"},{"$f":"'Rastreador de Perda de Peso'!C122","v":0}]
[{"$f":"IF(('Rastreador de Perda de Peso'!C123=0)*('Rastreador de Perda de Peso'!C122=0),TRUE)","v":true},{"$f":"IF(A102,0,IF('Rastreador de Perda de Peso'!B123=0,'Rastreador de Perda de Peso'!B122+5,'Rastreador de Perda de Peso'!B123))","v":"00:00:00"},{"$f":"'Rastreador de Perda de Peso'!C123","v":0}]
[{"$f":"IF(('Rastreador de Perda de Peso'!C124=0)*('Rastreador de Perda de Peso'!C123=0),TRUE)","v":true},{"$f":"IF(A103,0,IF('Rastreador de Perda de Peso'!B124=0,'Rastreador de Perda de Peso'!B123+5,'Rastreador de Perda de Peso'!B124))","v":"00:00:00"},{"$f":"'Rastreador de Perda de Peso'!C124","v":0}]
[{"$f":"IF(('Rastreador de Perda de Peso'!C125=0)*('Rastreador de Perda de Peso'!C124=0),TRUE)","v":true},{"$f":"IF(A104,0,IF('Rastreador de Perda de Peso'!B125=0,'Rastreador de Perda de Peso'!B124+5,'Rastreador de Perda de Peso'!B125))","v":"00:00:00"},{"$f":"'Rastreador de Perda de Peso'!C125","v":0}]
[{"$f":"IF(('Rastreador de Perda de Peso'!C126=0)*('Rastreador de Perda de Peso'!C125=0),TRUE)","v":true},{"$f":"IF(A105,0,IF('Rastreador de Perda de Peso'!B126=0,'Rastreador de Perda de Peso'!B125+5,'Rastreador de Perda de Peso'!B126))","v":"00:00:00"},{"$f":"'Rastreador de Perda de Peso'!C126","v":0}]
[{"$f":"IF(('Rastreador de Perda de Peso'!C127=0)*('Rastreador de Perda de Peso'!C126=0),TRUE)","v":true},{"$f":"IF(A106,0,IF('Rastreador de Perda de Peso'!B127=0,'Rastreador de Perda de Peso'!B126+5,'Rastreador de Perda de Peso'!B127))","v":"00:00:00"},{"$f":"'Rastreador de Perda de Peso'!C127","v":0}]
[{"$f":"IF(('Rastreador de Perda de Peso'!C128=0)*('Rastreador de Perda de Peso'!C127=0),TRUE)","v":true},{"$f":"IF(A107,0,IF('Rastreador de Perda de Peso'!B128=0,'Rastreador de Perda de Peso'!B127+5,'Rastreador de Perda de Peso'!B128))","v":"00:00:00"},{"$f":"'Rastreador de Perda de Peso'!C128","v":0}]
[{"$f":"IF(('Rastreador de Perda de Peso'!C129=0)*('Rastreador de Perda de Peso'!C128=0),TRUE)","v":true},{"$f":"IF(A108,0,IF('Rastreador de Perda de Peso'!B129=0,'Rastreador de Perda de Peso'!B128+5,'Rastreador de Perda de Peso'!B129))","v":"00:00:00"},{"$f":"'Rastreador de Perda de Peso'!C129","v":0}]